bitfinex/quotes_SOLUSD_20250831
["timestamp","ask_amount","ask_price","bid_price","bid_amount"]
[1756660224517,18.0934615,205.2,205.19,1e-08]
[1756660224833,21.37819826,205.2,205.19,1e-08]
[1756660225024,23.55270726,205.2,205.19,1e-08]
[1756660225526,28.4260016,205.2,205.19,1e-08]
[1756660228317,25.14126484,205.2,205.19,1e-08]
[1756660228937,28.40572919,205.2,205.19,1e-08]
[1756660229144,25.14126484,205.2,205.19,1e-08]
[1756660230542,139.27376936,205.18,205.17,0.2]
[1756660230753,181.11163685,205.18,205.17,0.2]
[1756660230941,176.61376936,205.18,205.17,0.2]
[1756660231241,6.82827837,205.18,205.17,0.9]
[1756660231447,48.66614586,205.18,205.17,0.9]
[1756660231622,44.16827837,205.18,205.17,0.9]
[1756660231815,74.66614586,205.18,205.17,0.9]
[1756660234144,32.45237649,205.18,205.17,0.9]
[1756660234318,74.66614586,205.18,205.17,0.9]
[1756660240825,48.88614586,205.18,205.17,0.2]
[1756660241257,48.66614586,205.18,205.17,0.2]
[1756660243627,48.88614586,205.18,205.17,0.2]
[1756660243948,48.66614586,205.18,205.17,0.2]
[1756660245350,62.48173987,205.18,205.17,1e-08]
[1756660245933,62.26173987,205.18,205.17,1e-08]
[1756660246746,62.48173987,205.18,205.17,1e-08]
[1756660246944,62.26173987,205.18,205.17,1e-08]
[1756660249949,62.48173987,205.18,205.17,1e-08]
[1756660251037,62.26173987,205.18,205.17,1e-08]
[1756660251356,62.48173987,205.18,205.17,1e-08]
[1756660252150,26.0,205.13,205.12,0.66]
[1756660252446,67.83786749,205.13,205.12,0.66]
[1756660252854,72.33573549,205.13,205.12,0.66]
[1756660253282,77.21069283,205.13,205.12,0.66]
[1756660258464,72.71282534,205.13,205.12,0.66]
[1756660258647,39.87069283,205.13,205.12,0.66]
[1756660258958,77.21069283,205.13,205.12,0.66]
[1756660262047,75.59349704,205.13,205.12,0.66]
[1756660262660,38.25349704,205.13,205.12,0.66]
[1756660262860,75.59349704,205.13,205.12,0.66]
[1756660266758,2.8806717,205.11,205.09,0.06602923]
[1756660266952,40.2206717,205.11,205.09,0.06602923]
[1756660267358,46.714473,205.11,205.09,0.06602923]
[1756660267579,9.374473,205.11,205.09,0.06602923]
[1756660267748,37.34,205.14,205.1,12.2551447]
[1756660268074,40.2206717,205.15,205.1,2.8806717]
[1756660268570,40.2206717,205.15,205.11,13.595594]
[1756660268866,40.2206717,205.15,205.12,0.71]
[1756660269374,40.2206717,205.16,205.12,0.71]
[1756660269665,37.34,205.16,205.12,3.5906717]
[1756660269871,37.34,205.16,205.13,0.71]
[1756660270459,37.34,205.16,205.13,3.5906717]
[1756660270652,37.34,205.17,205.14,0.71]
[1756660271573,2.8806717,205.18,205.14,0.71]
[1756660271773,37.34,205.17,205.14,0.71]
[1756660272077,37.34,205.17,205.15,0.71]
[1756660272276,41.83816021,205.17,205.15,0.71]
[1756660273063,46.71225659,205.17,205.15,0.71]
[1756660273880,4.49816021,205.16,205.15,0.71]
[1756660274891,4.49816021,205.16,205.14,0.71]
[1756660275185,4.49816021,205.16,205.15,0.71]
[1756660275367,4.49816021,205.16,205.14,0.71]
[1756660275560,4.49816021,205.16,205.15,0.71]
[1756660279165,37.34,205.17,205.15,0.71]
[1756660279482,4.49816021,205.16,205.15,0.71]
[1756660279986,41.83816021,205.17,205.15,0.71]
[1756660283684,46.71218751,205.17,205.15,0.71]
[1756660283896,46.71218751,205.17,205.1,4.49816021]
[1756660284075,4.49816021,205.16,205.11,0.71]
[1756660285707,28.26322055,205.22,205.15,30.49816021]
[1756660285708,16.08075601,205.22,205.15,30.49816021]
[1756660285864,16.33699965,205.29,205.22,13.59559401]
[1756660286066,4.15195373,205.33,205.28,18.09375422]
[1756660286067,0.06,205.33,205.28,18.09375422]
[1756660286269,0.06,205.33,205.3,18.09375422]
[1756660286469,0.06,205.33,205.25,26.0]
[1756660286665,4.5091837,205.31,205.29,1.952124]
[1756660286979,12.13842436,205.3,205.29,1.952124]
[1756660287376,12.13842436,205.3,205.22,4.49816021]
[1756660287599,7.64026415,205.29,205.23,13.595594]
[1756660287810,4.49816021,205.27,205.22,4.87275738]
[1756660288095,3.64206898,205.26,205.22,22.96651159]
[1756660288393,4.49816021,205.3,205.23,13.59559401]
[1756660288692,3.63830277,205.29,205.25,4.49816021]
[1756660288866,4.49816021,205.3,205.25,4.49816021]
[1756660289062,5.21816021,205.3,205.25,4.49816021]
[1756660289488,5.21816021,205.3,205.26,4.87186982]
[1756660291870,4.49816021,205.28,205.24,13.595594]
[1756660292192,0.71,205.27,205.25,3.59564217]
[1756660292371,0.71,205.27,205.23,18.09375421]
[1756660292571,0.71,205.27,205.24,3.59427408]
[1756660292771,0.71,205.27,205.23,18.09375421]
[1756660292990,4.49816021,205.28,205.24,8.46658222]
[1756660293179,4.49816021,205.29,205.24,9.37046788]
[1756660293378,5.20816021,205.29,205.24,9.37046788]
[1756660294276,0.71,205.28,205.24,9.37046788]
[1756660294477,0.71,205.28,205.24,4.87230767]
[1756660296498,0.71,205.28,205.24,9.37046788]
[1756660297191,4.49816021,205.29,205.24,9.37046788]
[1756660297392,5.20816021,205.29,205.24,9.37046788]
[1756660298581,0.71,205.28,205.24,9.37046788]
[1756660300680,0.71,205.28,205.24,4.87230767]
[1756660301779,4.49816021,205.29,205.24,4.87230767]
[1756660302094,0.72102349,205.31,205.26,4.49816021]
[1756660302299,0.71,205.3,205.26,4.49816021]
[1756660302487,0.71,205.3,205.27,4.49816021]
[1756660303000,0.01102349,205.31,205.29,4.49816021]
[1756660303197,0.01102349,205.31,205.3,4.49816021]
[1756660303782,0.01102349,205.31,205.3,9.36908081]
[1756660308192,0.01102349,205.31,205.3,22.96467482]
[1756660308392,0.01102349,205.31,205.3,26.54798495]
[1756660308691,0.01102349,205.31,205.3,28.50020495]
[1756660309792,0.01102349,205.31,205.3,24.00204474]
[1756660309984,0.01102349,205.31,205.3,28.50020495]
[1756660311812,0.01102349,205.31,205.3,24.00204474]
[1756660312122,0.01102349,205.31,205.3,28.50020495]
[1756660312787,0.01102349,205.31,205.3,28.4987644]
[1756660316289,0.01102349,205.31,205.3,28.98585646]
[1756660316910,0.01102349,205.31,205.3,28.4987644]
[1756660319917,0.01102349,205.31,205.3,28.49612563]
[1756660320405,0.01102349,205.31,205.3,28.98321769]
[1756660322018,0.06,205.33,205.32,39.59559401]
[1756660322315,1e-08,205.34,205.33,39.59559401]
[1756660322492,1e-08,205.34,205.33,43.6617908]
[1756660322695,1e-08,205.34,205.33,48.15995101]
[1756660322895,1e-08,205.34,205.33,48.15963438]
[1756660323392,1e-08,205.34,205.33,87.12407149]
[1756660323598,0.66000001,205.34,205.33,87.12407149]
[1756660324206,1e-08,205.34,205.33,91.99428042]
[1756660326325,0.66000001,205.34,205.33,91.99428042]
[1756660326821,1e-08,205.34,205.33,91.99428042]
[1756660327016,1e-08,205.34,205.33,54.49428042]
[1756660327199,1e-08,205.34,205.33,91.99428042]
[1756660328709,1e-08,205.34,205.33,90.04282242]
[1756660329227,0.66000001,205.34,205.33,90.04282242]
[1756660329800,0.66000001,205.34,205.33,22.04466221]
[1756660330003,0.66000001,205.34,205.33,54.67445328]
[1756660331605,0.66000001,205.34,205.32,4.49816021]
[1756660331833,1e-08,205.34,205.33,51.09559401]
[1756660332131,1e-08,205.34,205.33,37.5]
[1756660332431,0.66000001,205.34,205.32,37.48]
[1756660332602,0.66,205.33,205.32,37.5]
[1756660334634,0.66,205.33,205.32,41.99816021]
[1756660335528,0.66,205.33,205.32,46.86860634]
[1756660336743,1e-08,205.34,205.32,46.86860634]
[1756660336946,1e-08,205.34,205.33,18.09375422]
[1756660337824,1e-08,205.34,205.33,13.59559401]
[1756660338008,1e-08,205.34,205.33,55.59375422]
[1756660339442,1e-08,205.34,205.33,60.46396315]
[1756660340830,1e-08,205.34,205.33,55.98580294]
[1756660341031,1e-08,205.34,205.33,60.48396315]
[1756660341245,1e-08,205.34,205.33,55.98580294]
[1756660341560,1e-08,205.34,205.33,60.48396315]
[1756660342455,1e-08,205.34,205.33,65.41657343]
[1756660348751,0.06,205.35,205.33,65.41657343]
[1756660348963,0.06,205.35,205.34,4.49816021]
[1756660349137,0.72,205.35,205.34,4.49816021]
[1756660350253,0.06,205.35,205.34,9.36813196]
[1756660351459,0.72,205.35,205.34,37.46]
[1756660351751,0.72,205.35,205.33,37.46]
[1756660351959,0.72,205.34,205.33,37.46]
[1756660352742,0.72,205.34,205.28,13.59559401]
[1756660352946,0.72,205.33,205.29,41.97816021]
[1756660353249,0.72,205.32,205.29,41.97816021]
[1756660353454,0.72,205.31,205.29,41.97816021]
[1756660353653,0.72,205.3,205.29,55.57375422]
[1756660353855,0.72,205.3,205.29,13.59559401]
[1756660354159,0.72,205.3,205.29,51.09559401]
[1756660354362,0.72,205.32,205.29,55.59375422]
[1756660354545,0.72,205.32,205.31,4.49816021]
[1756660354750,0.06,205.35,205.31,41.97816021]
[1756660355352,0.72,205.34,205.31,41.97816021]
[1756660355553,0.72,205.33,205.31,41.97816021]
[1756660355759,0.72,205.32,205.31,37.48]
[1756660355958,0.72,205.32,205.31,41.97816021]
[1756660357860,0.72,205.32,205.31,13.59559401]
[1756660358060,0.78,205.35,205.32,13.59559401]
[1756660358262,0.06,205.35,205.34,18.09375422]
[1756660358863,0.06,205.35,205.34,13.59559401]
[1756660359051,0.78,205.35,205.34,18.09375422]
[1756660360060,0.78,205.35,205.33,4.49816021]
[1756660360259,0.06,205.35,205.34,37.5]
[1756660360460,0.06,205.35,205.33,41.99816021]
[1756660360971,0.72,205.34,205.33,41.99816021]
[1756660361862,0.72,205.34,205.33,46.86836914]
[1756660364161,0.72,205.34,205.33,42.37020893]
[1756660365375,0.06,205.35,205.33,42.37020893]
[1756660365376,0.06,205.35,205.34,13.59559401]
[1756660367065,0.06,205.35,205.34,18.46556576]
[1756660369776,0.78,205.35,205.34,37.48]
[1756660369985,0.78,205.35,205.34,51.07559401]
[1756660371868,0.78,205.35,205.34,13.59559401]
[1756660372072,0.78,205.35,205.34,55.92556576]
[1756660373665,0.78,205.35,205.34,51.05559401]
[1756660374180,0.78,205.35,205.34,55.92556576]
[1756660374379,0.78,205.35,205.34,18.46556576]
[1756660374555,0.78,205.35,205.34,55.92556576]
[1756660374877,0.78,205.35,205.34,51.05559401]
[1756660377492,0.78,205.35,205.34,51.03559401]
[1756660378587,0.78,205.35,205.32,26.0]
[1756660378785,0.72,205.34,205.33,37.46]
[1756660379185,0.06,205.35,205.33,37.46]
[1756660379389,0.78,205.35,205.33,37.46]
[1756660379580,0.06,205.35,205.33,42.33019473]
[1756660379892,0.72,205.34,205.33,42.33019473]
[1756660380673,0.06,205.35,205.33,42.33019473]
[1756660380893,0.06,205.35,205.34,13.59559401]
[1756660381191,0.78,205.35,205.34,13.59559401]
[1756660381567,0.78,205.35,205.34,18.46556576]
[1756660381873,0.78,205.35,205.34,37.46]
[1756660384382,0.78,205.35,205.34,42.32997175]
[1756660387289,0.06,205.35,205.34,55.92556576]
[1756660387474,0.06,205.35,205.32,30.87025919]
[1756660387678,0.7,205.34,205.33,37.48]
[1756660393199,0.06,205.35,205.33,42.35020893]
[1756660393498,0.06,205.35,205.33,46.84836914]
[1756660394194,0.06,205.35,205.34,18.09375422]
[1756660394585,0.06,205.35,205.34,20.04549722]
[1756660395395,0.06,205.35,205.34,24.91546897]
[1756660395599,0.02514239,205.36,205.34,25.40246614]
[1756660395801,0.02514239,205.36,205.35,55.57375422]
[1756660396178,0.02514239,205.36,205.35,81.57375422]
[1756660397590,0.02514239,205.36,205.35,86.44348881]
[1756660397988,0.02514239,205.36,205.35,88.39494681]
[1756660399284,0.02514239,205.36,205.35,62.39494681]
[1756660401279,0.7,205.45,205.4,13.59559401]
[1756660401482,0.7,205.44,205.43,18.09375422]
[1756660401697,0.7,205.44,205.43,55.57375422]
[1756660401901,0.7,205.44,205.43,57.52464122]
[1756660402612,0.7,205.44,205.43,62.39247941]
[1756660404806,0.1,205.46,205.45,18.46295833]
[1756660404983,0.1,205.46,205.45,60.44111854]
[1756660405503,0.1,205.46,205.45,62.39171954]
[1756660406987,0.1,205.47,205.45,58.38029576]
[1756660406988,1e-08,205.47,205.45,58.38029576]
[1756660407185,0.7,205.51,205.45,58.38029576]
[1756660407186,6.18516024,205.57,205.5,13.59559401]
[1756660407385,5.19816021,205.56,205.52,13.59559401]
[1756660407592,5.19816021,205.56,205.53,37.48]
[1756660407593,0.7,205.55,205.53,37.48]
[1756660407790,0.7,205.54,205.53,37.48]
[1756660408311,0.7,205.54,205.53,51.07559401]
[1756660408518,0.7,205.54,205.53,55.57375501]
[1756660409004,0.7,205.54,205.53,51.07559401]
[1756660410198,0.7,205.54,205.53,13.59559401]
[1756660410390,0.7,205.54,205.53,51.13559401]
[1756660410591,0.7,205.54,205.53,56.00106377]
[1756660411294,0.7,205.54,205.53,51.13559401]
[1756660413003,0.7,205.54,205.53,56.00106377]
[1756660414089,0.7,205.54,205.53,13.59559401]
[1756660414292,0.7,205.54,205.53,37.52]
[1756660417214,4.49816021,205.61,205.56,39.59559401]
[1756660417416,24.07126515,205.75,205.57,37.5]
[1756660417417,0.69,205.59,205.57,37.5]
[1756660417611,0.69,205.58,205.57,51.09559401]
[1756660418214,0.69,205.6,205.57,65.71797101]
[1756660418518,0.69,205.6,205.58,18.45967697]
[1756660418713,30.86231076,205.67,205.59,37.64]
[1756660418714,26.0,205.67,205.59,37.64]
[1756660418921,4.49816021,205.63,205.59,37.64]
[1756660419300,0.69,205.62,205.59,37.64]
[1756660419503,0.69,205.61,205.59,52.260952]
[1756660419709,0.69,205.6,205.59,65.85654601]
[1756660420316,0.69,205.6,205.59,70.72059581]
[1756660424212,0.69,205.6,205.59,65.85654601]
[1756660424416,5.18816021,205.6,205.58,37.6]
[1756660424615,5.18816021,205.59,205.58,37.6]
[1756660426416,5.18816021,205.59,205.57,37.62]
[1756660426612,0.69,205.58,205.57,37.62]
[1756660433018,5.18816021,205.6,205.57,37.62]
[1756660433214,0.69,205.59,205.57,37.62]
[1756660433637,0.69,205.59,205.57,42.48448569]
[1756660434228,134.4,205.63,205.57,42.48448569]
[1756660434431,4.49816021,205.61,205.57,42.48448569]
[1756660434624,0.69,205.6,205.57,42.48448569]
[1756660434821,0.69,205.59,205.57,42.48448569]
[1756660436407,0.75,205.59,205.57,42.48448569]
[1756660436922,0.06,205.59,205.57,42.48448569]
[1756660438024,0.06,205.59,205.57,47.67264569]
[1756660438214,0.06,205.59,205.57,10.05264569]
[1756660438537,5.18816021,205.58,205.55,37.54]
[1756660438730,4.49816021,205.56,205.55,37.54]
[1756660438933,0.69,205.56,205.55,37.54]
[1756660439842,0.69,205.56,205.54,4.86522231]
[1756660440011,4.49816021,205.57,205.55,37.56]
[1756660440523,5.18816021,205.56,205.55,37.56]
[1756660440716,5.18816021,205.56,205.52,18.46130051]
[1756660441034,5.18816021,205.55,205.53,37.56]
[1756660441221,0.69,205.55,205.53,37.56]
[1756660441935,0.7,205.54,205.52,4.8657065]
[1756660442114,0.7,205.54,205.53,37.54]
[1756660442616,5.19816021,205.54,205.53,37.54]
[1756660443030,5.19816021,205.54,205.5,4.86599952]
[1756660443231,5.19816021,205.53,205.51,37.56]
[1756660443442,5.19816021,205.52,205.48,5.19816]
[1756660443626,5.19816021,205.51,205.49,37.54]
[1756660443940,5.19816021,205.5,205.48,5.19816]
[1756660444134,5.19816021,205.5,205.46,13.59559401]
[1756660444135,4.49816021,205.5,205.46,13.59559401]
[1756660444311,4.49816021,205.49,205.45,13.59559401]
[1756660444518,4.49816021,205.49,205.46,37.56]
[1756660444834,5.19816021,205.48,205.46,37.56]
[1756660445415,0.7,205.48,205.46,37.56]
[1756660446134,0.7,205.48,205.44,4.52816021]
[1756660446135,5.19816021,205.48,205.44,13.62559401]
[1756660446344,5.19816021,205.48,205.45,37.56]
[1756660446548,5.19816021,205.48,205.44,0.03]
[1756660446722,5.19816021,205.48,205.44,37.59]
[1756660447622,4.49816021,205.51,205.45,18.09375422]
[1756660447827,0.7,205.51,205.48,4.49816021]
[1756660448045,5.19816021,205.53,205.49,13.59559401]
[1756660448253,0.7,205.52,205.49,13.59559401]
[1756660449711,4.49816021,205.53,205.48,42.44656676]
[1756660449712,0.7,205.51,205.48,42.44656676]
[1756660451652,0.7,205.51,205.48,37.58]
[1756660453524,4.49816021,205.49,205.47,0.03]
[1756660453728,0.7,205.5,205.47,0.03]
[1756660453941,0.7,205.48,205.47,0.03]
[1756660464130,4.49816021,205.49,205.47,0.03]
[1756660464531,5.19816021,205.49,205.47,0.03]
[1756660464745,4.49816021,205.49,205.47,0.03]
[1756660464946,0.7,205.48,205.47,0.03]
[1756660467669,5.19816021,205.48,205.47,0.03]
[1756660468063,0.7,205.48,205.47,0.03]
[1756660468770,5.19816021,205.48,205.47,0.03]
[1756660470245,0.7,205.48,205.47,0.03]
[1756660470443,5.19816021,205.48,205.47,0.03]
[1756660470946,0.7,205.48,205.47,0.03]
[1756660471147,5.19816021,205.48,205.47,0.03]
[1756660471473,0.7,205.48,205.47,0.03]
[1756660471771,5.19816021,205.48,205.47,0.03]
[1756660472072,0.7,205.48,205.47,0.03]
[1756660472973,0.76,205.48,205.47,0.03]
[1756660473675,5.25816021,205.48,205.47,0.03]
[1756660474971,0.76,205.48,205.47,0.03]
[1756660478174,3.62983662,205.48,205.47,0.03]
[1756660479885,8.4964903,205.48,205.47,0.03]
[1756660480062,2.86983662,205.45,205.44,0.03]
[1756660480582,3.54983662,205.45,205.44,0.03]
[1756660481380,8.41720094,205.45,205.44,0.03]
[1756660482075,10.03535393,205.45,205.44,0.03]
[1756660486285,5.16798961,205.45,205.44,0.03]
[1756660486684,4.54798961,205.48,205.44,0.03]
[1756660486899,4.54798961,205.48,205.44,0.07]
[1756660487188,5.22798961,205.48,205.44,0.03]
[1756660487386,4.48798961,205.45,205.44,0.03]
[1756660487891,5.16798961,205.45,205.44,0.03]
[1756660489370,10.03535393,205.45,205.44,0.03]
[1756660496190,0.06,205.47,205.44,0.03]
[1756660496386,4.48798961,205.46,205.44,0.03]
[1756660497387,4.48798961,205.45,205.44,0.03]
[1756660498790,4.48798961,205.46,205.44,0.03]
[1756660499570,5.16798961,205.46,205.44,0.03]
[1756660500508,4.48798961,205.45,205.44,0.03]
[1756660501026,5.16798961,205.45,205.44,0.03]
[1756660501185,4.48798961,205.45,205.44,0.03]
[1756660501497,5.16798961,205.45,205.44,0.03]
[1756660501990,42.54690804,205.47,205.44,0.03]
[1756660501991,38.4,205.47,205.44,0.03]
[1756660502196,4.48798961,205.46,205.44,0.03]
[1756660502495,0.06,205.47,205.44,0.07]
[1756660502679,0.78,205.47,205.44,13.62559401]
[1756660502990,5.26798961,205.47,205.44,13.62559401]
[1756660503195,0.78,205.47,205.44,13.62559401]
[1756660503494,5.26798961,205.47,205.44,13.62559401]
[1756660503870,5.26798961,205.47,205.44,0.03]
[1756660504073,5.26798961,205.47,205.44,13.62559401]
[1756660504274,0.06,205.47,205.44,18.53311805]
[1756660504498,0.78,205.47,205.44,13.62559401]
[1756660504884,0.06,205.47,205.44,13.62559401]
[1756660505406,0.06,205.47,205.44,18.49312932]
[1756660505585,0.06,205.47,205.45,0.04]
[1756660505774,0.06,205.47,205.46,9.35511703]
[1756660505979,0.06,205.47,205.46,22.99071104]
[1756660506193,0.06,205.47,205.46,24.94102704]
[1756660507202,0.06,205.47,205.46,20.45303743]
[1756660507385,0.06,205.47,205.46,24.94102704]
[1756660508406,0.06,205.47,205.46,22.99071104]
[1756660509478,0.06,205.47,205.46,48.99071104]
[1756660512212,0.06,205.47,205.46,48.95071104]
[1756660512887,0.06,205.47,205.46,50.90112104]
[1756660513883,0.06,205.47,205.46,15.54600401]
[1756660514088,0.06,205.47,205.46,57.67399362]
[1756660514715,0.06,205.47,205.46,53.18600401]
[1756660514900,0.06,205.47,205.46,57.67399362]
[1756660515102,0.06,205.47,205.46,62.54112104]
[1756660515411,0.06,205.48,205.47,13.59559401]
[1756660515605,0.06,205.48,205.47,60.61047416]
[1756660515915,0.06,205.48,205.47,60.93047416]
[1756660516086,0.06,205.48,205.47,62.88060016]
[1756660519212,0.06,205.48,205.47,20.41261055]
[1756660519392,0.06,205.48,205.47,62.82060016]
[1756660519594,0.78,205.48,205.47,58.33261055]
[1756660519918,0.06,205.48,205.47,58.33261055]
[1756660520291,0.06,205.48,205.47,20.41261055]
[1756660520501,0.06,205.48,205.47,58.33261055]
[1756660521303,0.78,205.48,205.47,15.54572001]
[1756660521512,0.78,205.48,205.47,39.870126]
[1756660522313,0.78,205.48,205.47,37.92]
[1756660524029,0.78,205.48,205.44,18.11358401]
[1756660524213,0.72,205.47,205.45,37.9]
[1756660524535,0.72,205.46,205.45,37.9]
[1756660525314,0.72,205.46,205.44,0.03]
[1756660525520,5.20798961,205.46,205.44,0.03]
[1756660525728,4.48798961,205.45,205.44,0.03]
[1756660526113,5.20798961,205.45,205.44,0.03]
[1756660527032,0.72,205.45,205.44,0.03]
[1756660528746,0.06,205.48,205.44,0.03]
[1756660528747,0.72,205.46,205.44,0.03]
[1756660528952,0.72,205.45,205.44,0.03]
[1756660529445,0.72,205.47,205.44,0.03]
[1756660529816,0.72,205.46,205.44,0.03]
[1756660530540,4.54798961,205.48,205.44,0.03]
[1756660530745,0.72,205.45,205.44,0.03]
[1756660531416,5.20798961,205.45,205.44,0.03]
[1756660533243,0.72,205.45,205.44,0.03]
[1756660533425,5.20798961,205.45,205.44,0.03]
[1756660533738,10.07535393,205.45,205.44,0.03]
[1756660535818,10.07535393,205.45,205.42,0.03]
[1756660536030,4.48798961,205.43,205.42,0.03]
[1756660536524,4.48798961,205.43,205.41,0.03]
[1756660536525,5.14798961,205.43,205.41,0.03]
[1756660536735,4.48798961,205.42,205.39,0.03]
[1756660536925,4.48798961,205.4,205.39,0.03]
[1756660537454,5.14798961,205.4,205.3,19.12749161]
[1756660537629,4.48798961,205.35,205.31,51.47559401]
[1756660537837,0.66,205.34,205.31,51.47559401]
[1756660538034,4.87020893,205.33,205.31,51.47559401]
[1756660539319,4.86997175,205.34,205.3,51.47559401]
[1756660539525,0.66,205.32,205.3,51.45559401]
[1756660539726,0.66,205.32,205.29,13.59559401]
[1756660539942,0.66,205.32,205.29,51.45559401]
[1756660540526,4.86997175,205.34,205.3,4.55798961]
[1756660540927,5.52997175,205.34,205.29,55.94358362]
[1756660541152,9.35796136,205.34,205.29,55.94358362]
[1756660541447,4.87044613,205.32,205.29,55.94358362]
[1756660541941,0.66,205.31,205.29,37.86]
[1756660542360,9.35843574,205.32,205.26,13.59559401]
[1756660542361,5.14798961,205.3,205.26,13.59559401]
[1756660542566,5.14798961,205.29,205.26,37.88]
[1756660542850,4.48798961,205.27,205.23,0.2]
[1756660543151,4.48798961,205.26,205.23,0.2]
[1756660543353,5.53210718,205.25,205.23,0.2]
[1756660543656,10.02009679,205.25,205.23,0.2]
[1756660544234,0.66,205.24,205.23,0.2]
[1756660544549,9.36009679,205.25,205.23,0.2]
[1756660544550,5.53210718,205.25,205.23,0.2]
[1756660548156,0.66,205.24,205.23,0.2]
[1756660548367,5.14798961,205.24,205.23,0.2]
[1756660549248,10.02033418,205.24,205.23,0.2]
[1756660551536,10.02033418,205.24,205.23,1e-08]
[1756660551739,5.53234457,205.24,205.23,1e-08]
[1756660551955,10.02033418,205.24,205.23,1e-08]
[1756660552835,24.67413818,205.24,205.23,1e-08]
[1756660554336,20.18614857,205.24,205.23,1e-08]
[1756660554537,10.02033418,205.24,205.23,1e-08]
[1756660556658,5.53234457,205.24,205.23,1e-08]
[1756660556867,10.02033418,205.24,205.23,1e-08]
[1756660559144,43.37234457,205.24,205.23,1e-08]
[1756660559366,47.86033418,205.24,205.23,1e-08]
[1756660562161,49.81427018,205.24,205.23,1e-08]
[1756660564656,26.0,205.21,205.18,0.03]
[1756660564858,4.48798961,205.19,205.18,0.03]
[1756660565372,26.0,205.16,205.1,0.2]
[1756660565575,4.48798961,205.12,205.1,0.2]
[1756660565751,4.48798961,205.11,205.1,0.2]
[1756660565952,9.3634223,205.11,205.1,0.2]
[1756660567869,4.87543269,205.11,205.1,0.2]
[1756660568168,4.48798961,205.11,205.1,0.2]
[1756660568764,5.20798961,205.11,205.1,0.2]
[1756660569254,10.0834223,205.11,205.1,0.2]
[1756660570080,5.59543269,205.11,205.1,0.2]
[1756660570263,10.0834223,205.11,205.1,0.2]
[1756660574575,47.9034223,205.11,205.1,0.2]
[1756660576094,47.9034223,205.11,205.1,3.2]
[1756660578069,47.1634223,205.11,205.1,3.2]
[1756660578376,47.8834223,205.11,205.1,3.2]
[1756660579163,4.87543269,205.11,205.1,3.2]
[1756660579359,68.67543269,205.11,205.1,3.2]
[1756660579564,73.1634223,205.11,205.1,3.2]
[1756660581386,73.8834223,205.11,205.1,3.2]
[1756660584764,69.39543269,205.11,205.1,3.2]
[1756660584972,73.8834223,205.11,205.1,3.2]
[1756660590680,69.39543269,205.11,205.1,3.2]
[1756660590882,73.8834223,205.11,205.1,3.2]
[1756660591779,36.0834223,205.11,205.1,3.2]
[1756660591975,73.9034223,205.11,205.1,3.2]
[1756660592198,36.0834223,205.11,205.1,3.2]
[1756660592402,73.8834223,205.11,205.1,3.2]
[1756660598990,19.53699965,205.14,205.1,3.2]
[1756660599203,4.48798961,205.11,205.1,3.2]
[1756660599523,68.30798961,205.11,205.1,3.2]
[1756660599726,68.98798961,205.11,205.1,3.2]
[1756660601218,73.8634223,205.11,205.1,3.2]
[1756660603095,73.8634223,205.11,205.09,0.06602923]
[1756660603298,73.8634223,205.11,205.07,0.03]
[1756660603299,26.0,205.08,205.07,0.03]
[1756660603495,68.30798961,205.08,205.07,0.03]
[1756660603791,68.98798961,205.08,205.07,0.03]
[1756660604698,73.1841355,205.08,205.07,0.03]
[1756660604897,73.1641355,205.08,205.07,0.03]
[1756660606404,77.12682968,205.08,205.07,0.03]
[1756660606593,77.12682968,205.08,205.05,0.03]